[Event "Early-Titled-Tuesday-Blitz-February-06-2024"]
[Site "Chess.com"]
[Date "2024.02.06"]
[Round "6"]
[White "FARIZA2018"]
[Black "The_Straightforward_Rook"]
[Result "1/2-1/2"]
[WhiteElo "2513"]
[BlackElo "2393"]
[TimeControl "180+1"]
[EndTime "9:08:12 PST"]
[Termination "Game drawn by repetition"]

1. e4 {[%clk 0:03:00.9]} 1... c6 {[%clk 0:02:56.3]} 2. d4 {[%clk 0:03:00.1]}
2... d5 {[%clk 0:02:57.2]} 3. Nc3 {[%clk 0:02:59.6]} 3... dxe4 {[%clk
0:02:57.1]} 4. Nxe4 {[%clk 0:03:00.3]} 4... Nf6 {[%clk 0:02:57.8]} 5. Nxf6+
{[%clk 0:03:00.3]} 5... exf6 {[%clk 0:02:58.7]} 6. c3 {[%clk 0:03:00.9]} 6...
Bd6 {[%clk 0:02:57.5]} 7. Bd3 {[%clk 0:03:01.4]} 7... O-O {[%clk 0:02:45.9]} 8.
Qc2 {[%clk 0:03:02]} 8... h5 {[%clk 0:02:43.4]} 9. Ne2 {[%clk 0:03:00.9]} 9...
Re8 {[%clk 0:02:41.2]} 10. O-O {[%clk 0:03:00.2]} 10... h4 {[%clk 0:02:38.7]}
11. h3 {[%clk 0:02:59.6]} 11... Nd7 {[%clk 0:02:36.9]} 12. Bf4 {[%clk
0:02:58.9]} 12... Nf8 {[%clk 0:02:35.6]} 13. Bxd6 {[%clk 0:02:58.5]} 13... Qxd6
{[%clk 0:02:36.5]} 14. Rad1 {[%clk 0:02:58.3]} 14... Ne6 {[%clk 0:02:34.9]} 15.
c4 {[%clk 0:02:52.7]} 15... Nf4 {[%clk 0:02:33.3]} 16. Nxf4 {[%clk 0:02:43.8]}
16... Qxf4 {[%clk 0:02:34.2]} 17. Rfe1 {[%clk 0:02:25.1]} 17... Bd7 {[%clk
0:02:33]} 18. Qc3 {[%clk 0:01:52.8]} 18... Rxe1+ {[%clk 0:02:30.8]} 19. Rxe1
{[%clk 0:01:52.1]} 19... Re8 {[%clk 0:02:31.7]} 20. Rxe8+ {[%clk 0:01:51.1]}
20... Bxe8 {[%clk 0:02:32.6]} 21. Qe1 {[%clk 0:01:35.4]} 21... Bd7 {[%clk
0:02:27]} 22. Qe4 {[%clk 0:01:27.6]} 22... Qxe4 {[%clk 0:02:19.7]} 23. Bxe4
{[%clk 0:01:27.3]} 23... Be6 {[%clk 0:02:20.6]} 24. b3 {[%clk 0:01:26.8]} 24...
f5 {[%clk 0:02:15.9]} 25. Bf3 {[%clk 0:01:26.4]} 25... Kf8 {[%clk 0:02:14.4]}
26. Kf1 {[%clk 0:01:25.7]} 26... Ke7 {[%clk 0:02:14.4]} 27. Ke2 {[%clk
0:01:25.8]} 27... g5 {[%clk 0:02:13.8]} 28. Kd3 {[%clk 0:01:23.8]} 28... g4
{[%clk 0:02:08.6]} 29. Be2 {[%clk 0:01:20.7]} 29... Kf6 {[%clk 0:02:01.8]} 30.
f4 {[%clk 0:01:07.4]} 30... gxf3 {[%clk 0:01:55.5]} 31. Bxf3 {[%clk 0:01:07.2]}
31... Kg5 {[%clk 0:01:55.2]} 32. Ke3 {[%clk 0:01:07.2]} 32... f4+ {[%clk
0:01:52.7]} 33. Kd2 {[%clk 0:01:03.4]} 33... Bf5 {[%clk 0:01:50.1]} 34. b4
{[%clk 0:01:00.1]} 34... Bb1 {[%clk 0:01:36.5]} 35. a4 {[%clk 0:00:59.6]} 35...
Ba2 {[%clk 0:01:36.7]} 36. Kc3 {[%clk 0:00:58.2]} 36... Kf5 {[%clk 0:01:29.6]}
37. b5 {[%clk 0:00:53]} 37... cxb5 {[%clk 0:01:28.2]} 38. axb5 {[%clk
0:00:53.4]} 38... b6 {[%clk 0:01:28.6]} 39. Be2 {[%clk 0:00:40.4]} 39... Ke4
{[%clk 0:01:22.1]} 40. Kb2 {[%clk 0:00:38.2]} 40... Ke3 {[%clk 0:01:22.2]} 41.
Kxa2 {[%clk 0:00:36.1]} 41... Kxe2 {[%clk 0:01:11.3]} 42. d5 {[%clk 0:00:36.5]}
42... Kf2 {[%clk 0:01:12.2]} 43. d6 {[%clk 0:00:37.2]} 43... Kxg2 {[%clk
0:01:13.1]} 44. d7 {[%clk 0:00:37.9]} 44... f3 {[%clk 0:01:14]} 45. d8=Q {[%clk
0:00:38.2]} 45... f2 {[%clk 0:01:14.9]} 46. Qd5+ {[%clk 0:00:32.2]} 46... Kg1
{[%clk 0:01:14.7]} 47. Qg5+ {[%clk 0:00:31.4]} 47... Kh1 {[%clk 0:01:12.6]} 48.
Qf4 {[%clk 0:00:31.1]} 48... Kg1 {[%clk 0:01:09.5]} 49. Qg4+ {[%clk 0:00:28.8]}
49... Kh1 {[%clk 0:01:09.5]} 50. Qf3+ {[%clk 0:00:26.9]} 50... Kg1 {[%clk
0:01:09.4]} 51. Qg4+ {[%clk 0:00:25.1]} 51... Kh1 {[%clk 0:01:08.4]} 52. Qe4+
{[%clk 0:00:18]} 52... Kg1 {[%clk 0:01:07.8]} 53. Qd4 {[%clk 0:00:16.1]} 53...
Kg2 {[%clk 0:01:07.5]} 54. Qd2 {[%clk 0:00:09]} 54... Kg1 {[%clk 0:01:05.4]} 55.
Qg5+ {[%clk 0:00:08.5]} 55... Kh1 {[%clk 0:01:05]} 56. Qd5+ {[%clk 0:00:06.5]}
56... Kg1 {[%clk 0:01:05]} 57. Qd4 {[%clk 0:00:04.9]} 57... Kg2 {[%clk
0:01:04.2]} 58. Qg4+ {[%clk 0:00:04.8]} 58... Kh2 {[%clk 0:00:59]} 59. Qf4+
{[%clk 0:00:04.5]} 59... Kg1 {[%clk 0:00:59.2]} 60. Qg4+ {[%clk 0:00:03.2]}
1/2-1/2

[Event "Early-Titled-Tuesday-Blitz-February-06-2024"]
[Site "Chess.com"]
[Date "2024.02.06"]
[Round "6"]
[White "Polish_fighter3000"]
[Black "Zhigalko_Sergei"]
[Result "1/2-1/2"]
[WhiteElo "3058"]
[BlackElo "2951"]
[TimeControl "180+1"]
[EndTime "9:08:13 PST"]
[Termination "Game drawn by repetition"]

1. d4 {[%clk 0:03:00.9]} 1... Nf6 {[%clk 0:02:59.7]} 2. c4 {[%clk 0:03:01.1]}
2... e6 {[%clk 0:02:55.5]} 3. Nc3 {[%clk 0:03:01.2]} 3... Bb4 {[%clk 0:02:55.4]}
4. Qc2 {[%clk 0:03:01.8]} 4... O-O {[%clk 0:02:55.3]} 5. a3 {[%clk 0:02:59.5]}
5... Bxc3+ {[%clk 0:02:55.2]} 6. Qxc3 {[%clk 0:03:00.4]} 6... d6 {[%clk
0:02:56.1]} 7. Nf3 {[%clk 0:02:54.6]} 7... b6 {[%clk 0:02:53.3]} 8. Bg5 {[%clk
0:02:49.7]} 8... Bb7 {[%clk 0:02:53.2]} 9. Nd2 {[%clk 0:02:40.9]} 9... Nbd7
{[%clk 0:02:50.6]} 10. f3 {[%clk 0:02:34.4]} 10... c5 {[%clk 0:02:50.4]} 11.
dxc5 {[%clk 0:02:19.8]} 11... bxc5 {[%clk 0:02:45.4]} 12. e4 {[%clk 0:02:15.9]}
12... Qb6 {[%clk 0:02:02.4]} 13. Be2 {[%clk 0:02:12]} 13... a5 {[%clk
0:01:50.4]} 14. O-O {[%clk 0:02:03.6]} 14... a4 {[%clk 0:01:46.1]} 15. Kh1
{[%clk 0:02:00]} 15... Rab8 {[%clk 0:01:42.4]} 16. Rab1 {[%clk 0:01:56.5]} 16...
Bc6 {[%clk 0:01:41.6]} 17. Rfd1 {[%clk 0:01:51.7]} 17... h6 {[%clk 0:01:40.7]}
18. Bf4 {[%clk 0:01:45.9]} 18... Qc7 {[%clk 0:01:34.6]} 19. Nf1 {[%clk
0:01:43.1]} 19... e5 {[%clk 0:01:11.6]} 20. Bg3 {[%clk 0:01:42.9]} 20... Rfd8
{[%clk 0:01:03.3]} 21. Bh4 {[%clk 0:01:21.4]} 21... g5 {[%clk 0:00:42.7]} 22.
Bg3 {[%clk 0:00:56.8]} 22... Nf8 {[%clk 0:00:38.1]} 23. Rxd6 {[%clk 0:00:48.9]}
23... Rxd6 {[%clk 0:00:25.8]} 24. Qxe5 {[%clk 0:00:48.6]} 24... Ne8 {[%clk
0:00:16]} 25. Qxc5 {[%clk 0:00:46.3]} 25... Qd7 {[%clk 0:00:09]} 26. Bxd6 {[%clk
0:00:38.4]} 26... Ne6 {[%clk 0:00:09.4]} 27. Qxc6 {[%clk 0:00:36.6]} 27... Qxc6
{[%clk 0:00:08.9]} 28. Bxb8 {[%clk 0:00:37.1]} 28... Nd6 {[%clk 0:00:06.7]} 29.
Ne3 {[%clk 0:00:31.3]} 29... Qb6 {[%clk 0:00:06.9]} 30. Bxd6 {[%clk 0:00:31.1]}
30... Qxd6 {[%clk 0:00:05.2]} 31. Nd5 {[%clk 0:00:29.9]} 31... Nd4 {[%clk
0:00:05.3]} 32. Bd1 {[%clk 0:00:26.8]} 32... Qa6 {[%clk 0:00:03.6]} 33. Rc1
{[%clk 0:00:24.7]} 33... Nb3 {[%clk 0:00:03]} 34. Bxb3 {[%clk 0:00:22.3]} 34...
axb3 {[%clk 0:00:03.9]} 35. h3 {[%clk 0:00:17.3]} 35... Qa5 {[%clk 0:00:03.7]}
36. Rc3 {[%clk 0:00:16.8]} 36... Qc5 {[%clk 0:00:03.1]} 37. Rxb3 {[%clk
0:00:13.9]} 37... Qxc4 {[%clk 0:00:03]} 38. Rc3 {[%clk 0:00:13.2]} 38... Qd4
{[%clk 0:00:03]} 39. b4 {[%clk 0:00:06.9]} 39... f5 {[%clk 0:00:02.4]} 40. Rc8+
{[%clk 0:00:06.3]} 40... Kf7 {[%clk 0:00:02.2]} 41. Rc7+ {[%clk 0:00:06.6]}
41... Kf8 {[%clk 0:00:02.7]} 42. b5 {[%clk 0:00:03.3]} 42... fxe4 {[%clk
0:00:02.2]} 43. Rc8+ {[%clk 0:00:03.7]} 43... Kf7 {[%clk 0:00:02.1]} 44. Rc7+
{[%clk 0:00:04.6]} 44... Kf8 {[%clk 0:00:02.4]} 45. fxe4 {[%clk 0:00:04.7]}
45... Qxe4 {[%clk 0:00:02.8]} 46. Rd7 {[%clk 0:00:03.7]} 46... Qe1+ {[%clk
0:00:02.7]} 47. Kh2 {[%clk 0:00:04.1]} 47... Qe5+ {[%clk 0:00:03.2]} 48. Kg1
{[%clk 0:00:04.2]} 48... Qe1+ {[%clk 0:00:03.5]} 49. Kh2 {[%clk 0:00:04.8]}
49... Qe5+ {[%clk 0:00:03.9]} 50. Kh1 {[%clk 0:00:05]} 50... Qe1+ {[%clk
0:00:04]} 51. Kh2 {[%clk 0:00:05.2]} 1/2-1/2

[Event "Early-Titled-Tuesday-Blitz-February-06-2024"]
[Site "Chess.com"]
[Date "2024.02.06"]
[Round "6"]
[White "BardArtem"]
[Black "wyharga"]
[Result "1/2-1/2"]
[WhiteElo "2767"]
[BlackElo "2568"]
[TimeControl "180+1"]
[EndTime "9:08:13 PST"]
[Termination "Game drawn by stalemate"]

1. e4 {[%clk 0:03:00.9]} 1... c5 {[%clk 0:02:58.4]} 2. c3 {[%clk 0:03:00.8]}
2... Nf6 {[%clk 0:02:56.9]} 3. e5 {[%clk 0:03:00.6]} 3... Nd5 {[%clk 0:02:57]}
4. Nf3 {[%clk 0:03:01.2]} 4... d6 {[%clk 0:02:50.2]} 5. Bc4 {[%clk 0:02:59]}
5... Nb6 {[%clk 0:02:42.4]} 6. Bb3 {[%clk 0:02:58.3]} 6... Nc6 {[%clk
0:02:37.6]} 7. exd6 {[%clk 0:02:52.5]} 7... e6 {[%clk 0:02:05.9]} 8. O-O {[%clk
0:02:50.1]} 8... Bxd6 {[%clk 0:02:05.5]} 9. d4 {[%clk 0:02:48.2]} 9... cxd4
{[%clk 0:02:04.9]} 10. cxd4 {[%clk 0:02:49.1]} 10... O-O {[%clk 0:02:04.6]} 11.
Nc3 {[%clk 0:02:48.8]} 11... Be7 {[%clk 0:01:58.2]} 12. Re1 {[%clk 0:02:47.7]}
12... Nb4 {[%clk 0:01:49.6]} 13. Ne5 {[%clk 0:02:44.7]} 13... Bd7 {[%clk
0:01:46.3]} 14. a3 {[%clk 0:02:34.4]} 14... N4d5 {[%clk 0:01:46]} 15. Nxd5
{[%clk 0:02:34.2]} 15... Nxd5 {[%clk 0:01:46.2]} 16. Qf3 {[%clk 0:02:28.2]}
16... Bc6 {[%clk 0:01:45.8]} 17. Nxc6 {[%clk 0:02:26.3]} 17... bxc6 {[%clk
0:01:45.8]} 18. Bc2 {[%clk 0:02:21.7]} 18... Bf6 {[%clk 0:01:43.9]} 19. Bd2
{[%clk 0:02:12]} 19... g6 {[%clk 0:01:36.9]} 20. Qe4 {[%clk 0:02:07.3]} 20...
Qb6 {[%clk 0:01:35.4]} 21. Bc3 {[%clk 0:01:57.2]} 21... Rfd8 {[%clk 0:01:24.6]}
22. Qf3 {[%clk 0:01:50.6]} 22... Bxd4 {[%clk 0:01:14.4]} 23. Bxd4 {[%clk
0:01:49]} 23... Qxd4 {[%clk 0:01:14.5]} 24. b4 {[%clk 0:01:47.8]} 24... a5
{[%clk 0:01:07.5]} 25. bxa5 {[%clk 0:01:41.3]} 25... Rxa5 {[%clk 0:01:06]} 26.
Be4 {[%clk 0:01:38.8]} 26... Rda8 {[%clk 0:01:03.1]} 27. h3 {[%clk 0:01:35.4]}
27... Kg7 {[%clk 0:00:54.4]} 28. Red1 {[%clk 0:01:33.6]} 28... Qf6 {[%clk
0:00:54.4]} 29. Qg3 {[%clk 0:01:17.8]} 29... Nc3 {[%clk 0:00:48.7]} 30. Re1
{[%clk 0:01:11.7]} 30... Nxe4 {[%clk 0:00:47.4]} 31. Qe3 {[%clk 0:01:03.4]}
31... Nd6 {[%clk 0:00:46.2]} 32. Rac1 {[%clk 0:01:02.4]} 32... Rxa3 {[%clk
0:00:43.3]} 33. Qc5 {[%clk 0:01:01.6]} 33... Nf5 {[%clk 0:00:42]} 34. Qxc6
{[%clk 0:01:00.7]} 34... Ra2 {[%clk 0:00:41.7]} 35. Qe4 {[%clk 0:00:57.8]} 35...
h5 {[%clk 0:00:39.5]} 36. Re2 {[%clk 0:00:54.2]} 36... Rxe2 {[%clk 0:00:38.5]}
37. Qxe2 {[%clk 0:00:55.1]} 37... Ra1 {[%clk 0:00:38.5]} 38. Rxa1 {[%clk
0:00:52]} 38... Qxa1+ {[%clk 0:00:39]} 39. Kh2 {[%clk 0:00:52.9]} 39... h4
{[%clk 0:00:39.1]} 40. Qe4 {[%clk 0:00:45.1]} 40... Qd4 {[%clk 0:00:38.8]} 41.
Qe2 {[%clk 0:00:43.6]} 41... Qf4+ {[%clk 0:00:38.8]} 42. Kg1 {[%clk 0:00:43.3]}
42... Nd4 {[%clk 0:00:38.6]} 43. Qd3 {[%clk 0:00:41.9]} 43... e5 {[%clk
0:00:38.4]} 44. Qa6 {[%clk 0:00:37.9]} 44... Qc1+ {[%clk 0:00:34.8]} 45. Kh2
{[%clk 0:00:38.3]} 45... Qf4+ {[%clk 0:00:34.3]} 46. Kg1 {[%clk 0:00:38.7]}
46... Qd2 {[%clk 0:00:32.9]} 47. Qa1 {[%clk 0:00:30]} 47... Ne2+ {[%clk
0:00:28.6]} 48. Kf1 {[%clk 0:00:29.7]} 48... Qc1+ {[%clk 0:00:28.3]} 49. Qxc1
{[%clk 0:00:27.8]} 49... Nxc1 {[%clk 0:00:28.8]} 50. g3 {[%clk 0:00:28.5]} 50...
g5 {[%clk 0:00:25.3]} 51. Kg2 {[%clk 0:00:28.1]} 51... f5 {[%clk 0:00:24.8]} 52.
g4 {[%clk 0:00:27.5]} 52... Kf6 {[%clk 0:00:24.8]} 53. Kf3 {[%clk 0:00:25]}
53... Nd3 {[%clk 0:00:24.8]} 54. Ke3 {[%clk 0:00:25.3]} 54... Nf4 {[%clk
0:00:24.6]} 55. Kf3 {[%clk 0:00:24.5]} 55... Nxh3 {[%clk 0:00:24.8]} 56. gxf5
{[%clk 0:00:25]} 56... Kxf5 {[%clk 0:00:24.5]} 57. Kg2 {[%clk 0:00:25.9]} 57...
g4 {[%clk 0:00:24.8]} 58. f3 {[%clk 0:00:25]} 58... Nf4+ {[%clk 0:00:25]} 59.
Kh2 {[%clk 0:00:24.4]} 59... g3+ {[%clk 0:00:25.2]} 60. Kh1 {[%clk 0:00:24.5]}
60... h3 {[%clk 0:00:25.4]} 61. Kg1 {[%clk 0:00:24.9]} 61... e4 {[%clk
0:00:25.6]} 62. Kf1 {[%clk 0:00:19.4]} 62... exf3 {[%clk 0:00:24.9]} 63. Kg1
{[%clk 0:00:19.8]} 63... Kg4 {[%clk 0:00:24.8]} 64. Kf1 {[%clk 0:00:19.9]} 64...
h2 {[%clk 0:00:24.8]} 65. Ke1 {[%clk 0:00:19.9]} 65... g2 {[%clk 0:00:25]} 66.
Kd2 {[%clk 0:00:20.8]} 66... f2 {[%clk 0:00:25.1]} 67. Kc3 {[%clk 0:00:21.7]}
67... f1=Q {[%clk 0:00:25.3]} 68. Kb4 {[%clk 0:00:22.6]} 68... g1=Q {[%clk
0:00:25.5]} 69. Ka5 {[%clk 0:00:23.5]} 69... Qc4 {[%clk 0:00:25.1]} 1/2-1/2

[Event "Early-Titled-Tuesday-Blitz-February-06-2024"]
[Site "Chess.com"]
[Date "2024.02.06"]
[Round "6"]
[White "LeoWin2012"]
[Black "tarno17"]
[Result "0-1"]
[WhiteElo "2157"]
[BlackElo "2116"]
[TimeControl "180+1"]
[EndTime "9:08:13 PST"]
[Termination "tarno17 won on time"]

1. e4 {[%clk 0:03:00.9]} 1... c5 {[%clk 0:02:59.9]} 2. Nf3 {[%clk 0:02:48.7]}
2... e6 {[%clk 0:03:00.1]} 3. c4 {[%clk 0:02:46.1]} 3... a6 {[%clk 0:02:59.2]}
4. Nc3 {[%clk 0:02:44.5]} 4... Qc7 {[%clk 0:02:58.9]} 5. d4 {[%clk 0:02:43.2]}
5... cxd4 {[%clk 0:02:58.8]} 6. Nxd4 {[%clk 0:02:42.7]} 6... Nf6 {[%clk
0:02:58.6]} 7. Be3 {[%clk 0:02:42.1]} 7... Bb4 {[%clk 0:02:57.4]} 8. f3 {[%clk
0:02:39.7]} 8... Nc6 {[%clk 0:02:51.1]} 9. Qd2 {[%clk 0:02:38.3]} 9... Ne5
{[%clk 0:02:34.3]} 10. b3 {[%clk 0:02:35.1]} 10... d5 {[%clk 0:02:11.8]} 11.
exd5 {[%clk 0:02:26.9]} 11... Nxd5 {[%clk 0:02:09.9]} 12. Nde2 {[%clk
0:02:17.6]} 12... Nxe3 {[%clk 0:01:46.2]} 13. Qxe3 {[%clk 0:02:17.1]} 13... Bc5
{[%clk 0:01:27.6]} 14. Qd2 {[%clk 0:02:08.1]} 14... O-O {[%clk 0:01:26.4]} 15.
O-O-O {[%clk 0:01:53.9]} 15... b5 {[%clk 0:01:01.7]} 16. cxb5 {[%clk 0:01:37.6]}
16... axb5 {[%clk 0:00:59.5]} 17. Kb1 {[%clk 0:01:37.2]} 17... b4 {[%clk
0:00:52.4]} 18. Ne4 {[%clk 0:01:34.9]} 18... Be7 {[%clk 0:00:46.1]} 19. Rc1
{[%clk 0:01:26.5]} 19... Qa7 {[%clk 0:00:40.4]} 20. Nf4 {[%clk 0:01:22.9]} 20...
Rd8 {[%clk 0:00:35.1]} 21. Qb2 {[%clk 0:01:08.5]} 21... Bd7 {[%clk 0:00:18.9]}
22. Nd3 {[%clk 0:00:57.8]} 22... Nc6 {[%clk 0:00:16.1]} 23. Ndc5 {[%clk
0:00:53]} 23... Nd4 {[%clk 0:00:09.4]} 24. Nxd7 {[%clk 0:00:43]} 24... Rxd7
{[%clk 0:00:10.3]} 25. Bc4 {[%clk 0:00:42.6]} 25... Nf5 {[%clk 0:00:05.2]} 26.
Rhd1 {[%clk 0:00:38.3]} 26... Rad8 {[%clk 0:00:05.1]} 27. Qe2 {[%clk 0:00:32.1]}
27... h6 {[%clk 0:00:04.6]} 28. Rxd7 {[%clk 0:00:28.2]} 28... Qxd7 {[%clk
0:00:03.7]} 29. g4 {[%clk 0:00:21.2]} 29... Nd4 {[%clk 0:00:04.1]} 30. Qf2
{[%clk 0:00:20.8]} 30... Qb7 {[%clk 0:00:03.1]} 31. Rd1 {[%clk 0:00:18.9]} 31...
Nc6 {[%clk 0:00:03.1]} 32. Rxd8+ {[%clk 0:00:18.9]} 32... Bxd8 {[%clk 0:00:04]}
33. Qd2 {[%clk 0:00:17.3]} 33... Be7 {[%clk 0:00:03]} 34. Nd6 {[%clk 0:00:15.1]}
34... Qc7 {[%clk 0:00:02.4]} 35. Ne4 {[%clk 0:00:15.2]} 35... Ne5 {[%clk
0:00:02.6]} 36. Qe2 {[%clk 0:00:13.9]} 36... Nxc4 {[%clk 0:00:02.2]} 37. Qxc4
{[%clk 0:00:14.8]} 37... Qb6 {[%clk 0:00:02]} 38. Qc8+ {[%clk 0:00:13.7]} 38...
Kh7 {[%clk 0:00:02.1]} 39. Qc2 {[%clk 0:00:14.6]} 39... Qg1+ {[%clk 0:00:02.2]}
40. Kb2 {[%clk 0:00:13.1]} 40... Qd4+ {[%clk 0:00:02.6]} 41. Kb1 {[%clk
0:00:11]} 41... g6 {[%clk 0:00:02.3]} 42. h3 {[%clk 0:00:07.8]} 42... Kg7 {[%clk
0:00:02.5]} 43. Qb2 {[%clk 0:00:05.1]} 43... Qxb2+ {[%clk 0:00:02.5]} 44. Kxb2
{[%clk 0:00:06]} 44... f5 {[%clk 0:00:02.6]} 45. gxf5 {[%clk 0:00:05.7]} 45...
exf5 {[%clk 0:00:03.3]} 46. Nd2 {[%clk 0:00:05.2]} 46... g5 {[%clk 0:00:03.5]}
47. Nc4 {[%clk 0:00:05.5]} 47... h5 {[%clk 0:00:03.1]} 48. a4 {[%clk 0:00:04.1]}
48... g4 {[%clk 0:00:03]} 0-1

[Event "Early-Titled-Tuesday-Blitz-February-06-2024"]
[Site "Chess.com"]
[Date "2024.02.06"]
[Round "6"]
[White "secrethawk1"]
[Black "Paladin61"]
[Result "1-0"]
[WhiteElo "2514"]
[BlackElo "2664"]
[TimeControl "180+1"]
[EndTime "9:08:14 PST"]
[Termination "secrethawk1 won by resignation"]

1. e4 {[%clk 0:02:59.5]} 1... e6 {[%clk 0:02:58.7]} 2. d4 {[%clk 0:02:58]} 2...
d5 {[%clk 0:02:58.7]} 3. Nc3 {[%clk 0:02:49.6]} 3... Nf6 {[%clk 0:02:57.8]} 4.
Bg5 {[%clk 0:02:48.7]} 4... dxe4 {[%clk 0:02:56.1]} 5. Nxe4 {[%clk 0:02:48.9]}
5... Be7 {[%clk 0:02:55.3]} 6. Bxf6 {[%clk 0:02:47.7]} 6... gxf6 {[%clk
0:02:55.1]} 7. Nf3 {[%clk 0:02:47.7]} 7... f5 {[%clk 0:02:51.8]} 8. Nc3 {[%clk
0:02:46.3]} 8... a6 {[%clk 0:02:51.5]} 9. Be2 {[%clk 0:02:44.6]} 9... b5 {[%clk
0:02:49.4]} 10. a3 {[%clk 0:02:43.9]} 10... Bb7 {[%clk 0:02:47.2]} 11. Qd2
{[%clk 0:02:41.7]} 11... Nd7 {[%clk 0:02:31.8]} 12. O-O-O {[%clk 0:02:34.3]}
12... Nb6 {[%clk 0:02:18.8]} 13. Ne5 {[%clk 0:02:27.7]} 13... h5 {[%clk
0:02:06.6]} 14. f4 {[%clk 0:02:21.8]} 14... b4 {[%clk 0:01:47.8]} 15. axb4
{[%clk 0:02:18.5]} 15... Bxb4 {[%clk 0:01:48.7]} 16. Qd3 {[%clk 0:02:07.2]}
16... Nd5 {[%clk 0:01:16.6]} 17. Qg3 {[%clk 0:01:45.1]} 17... Bxc3 {[%clk
0:00:59.1]} 18. bxc3 {[%clk 0:01:40.1]} 18... Qe7 {[%clk 0:00:55.6]} 19. Kd2
{[%clk 0:01:37.9]} 19... c5 {[%clk 0:00:48.2]} 20. Rb1 {[%clk 0:01:32.8]} 20...
O-O-O {[%clk 0:00:45.4]} 21. Rb3 {[%clk 0:01:18.7]} 21... Rhg8 {[%clk
0:00:40.9]} 22. Qf2 {[%clk 0:01:12.7]} 22... Nf6 {[%clk 0:00:35.3]} 23. Bf3
{[%clk 0:01:04.4]} 23... Bxf3 {[%clk 0:00:26.8]} 24. gxf3 {[%clk 0:01:03.5]}
24... Kc7 {[%clk 0:00:25.6]} 25. Rhb1 {[%clk 0:01:01.3]} 25... Qd6 {[%clk
0:00:19.1]} 26. Rb7+ {[%clk 0:00:52.1]} 26... Kc8 {[%clk 0:00:16.2]} 27. Rb8+
{[%clk 0:00:47.9]} 27... Qxb8 {[%clk 0:00:14.7]} 28. Rxb8+ {[%clk 0:00:48.8]}
28... Kxb8 {[%clk 0:00:15.6]} 29. Nc6+ {[%clk 0:00:48.6]} 29... Kb7 {[%clk
0:00:14.5]} 30. Nxd8+ {[%clk 0:00:49.5]} 30... Rxd8 {[%clk 0:00:08]} 31. Qh4
{[%clk 0:00:48.9]} 31... cxd4 {[%clk 0:00:06.3]} 32. Qxf6 {[%clk 0:00:48.3]}
32... dxc3+ {[%clk 0:00:06.5]} 33. Kxc3 {[%clk 0:00:45.8]} 33... Rd7 {[%clk
0:00:07.4]} 34. Qh8 {[%clk 0:00:41.6]} 34... Rc7+ {[%clk 0:00:06.8]} 35. Kb2
{[%clk 0:00:41.5]} 35... a5 {[%clk 0:00:02.9]} 36. Qxh5 {[%clk 0:00:41.3]} 36...
a4 {[%clk 0:00:03.2]} 37. Qh8 {[%clk 0:00:26.7]} 37... a3+ {[%clk 0:00:02.1]}
38. Kxa3 {[%clk 0:00:23.4]} 38... Rxc2 {[%clk 0:00:02.1]} 39. h4 {[%clk
0:00:18.4]} 39... Rc7 {[%clk 0:00:03]} 40. h5 {[%clk 0:00:17.2]} 40... Kc6
{[%clk 0:00:03.1]} 41. Qc3+ {[%clk 0:00:15.5]} 41... Kd6 {[%clk 0:00:02.9]} 42.
Qxc7+ {[%clk 0:00:11.8]} 42... Kxc7 {[%clk 0:00:03.8]} 43. h6 {[%clk 0:00:12]}
43... Kd6 {[%clk 0:00:04.5]} 44. h7 {[%clk 0:00:12.4]} 44... Kd5 {[%clk
0:00:05.1]} 45. h8=Q {[%clk 0:00:12.5]} 45... Kc4 {[%clk 0:00:06]} 46. Qf6
{[%clk 0:00:11.9]} 46... Kd3 {[%clk 0:00:06.9]} 47. Qxf7 {[%clk 0:00:12.2]}
47... Ke3 {[%clk 0:00:07.7]} 48. Qxe6+ {[%clk 0:00:12.1]} 48... Kxf4 {[%clk
0:00:08.6]} 49. Qe2 {[%clk 0:00:11.6]} 49... Kg3 {[%clk 0:00:08.8]} 50. Qe5+
{[%clk 0:00:10.9]} 50... f4 {[%clk 0:00:08.1]} 51. Qe4 {[%clk 0:00:10.1]} 51...
Kg2 {[%clk 0:00:08.7]} 52. Qxf4 {[%clk 0:00:10.2]} 52... Kh1 {[%clk 0:00:09.6]}
53. Qg4 {[%clk 0:00:09.7]} 53... Kh2 {[%clk 0:00:09.6]} 54. f4 {[%clk
0:00:10.2]} 1-0